[Event "Saint Louis Norm Congress-IM 2022"]
[Site "Saint Louis"]
[Date "2022.05.24"]
[Round "9.4"]
[White "Ezra Paul Chambers"]
[Black "Lee, Alice"]
[Result "1/2-1/2"]
[ECO "B12"]
[WhiteElo "2232"]
[BlackElo "2344"]
[Annotator "TA"]
[PlyCount "82"]
[EventDate "2022.05.20"]
[EventType "tourn"]
[EventCountry "USA"]
[SourceTitle "playchess.com"]
[Source "ChessBase"]
[SourceQuality "1"]
[TimeControl "5400+30"]

{[%evp 9,82,14,13,13,22,10,22,22,20,14,28,26,31,0,0,0,0,0,41,0,15,0,0,-1,0,0,0,0,0,-26,-32,-34,-50,-27,-25,-67,-67,-67,-52,-64,-66,-73,-8,-93,-25,-87,-89,-102,0,0,0,0,0,0,0,0,0,0,0,0,0,0,0,0,0,0,0,0,0,0,0,0,0,0,0]} 1. e4 {[%emt 0:00:06]} c6 {[%emt 0:00:25]} 2. d4 {[%emt 0:00:45]} d5 {[%emt 0:00:19]} 3. e5 {[%emt 0:00:18]} Bf5 {[%emt 0:00:05]} 4. Nd2 {[%emt 0:00:07]} e6 {[%emt 0:00:06]} 5. Nb3 {[%emt 0:00:10]} a6 {[%emt 0:00:03]} 6. Nf3 {[%emt 0:03:59] B12: Caro-Kann: Advance Variation.} c5 {[%emt 0:01:31]} 7. dxc5 {[%emt 0:07:33]} Bxc5 {[%emt 0:00:14]} 8. Nxc5 {[%emt 0:02:01]} Qa5+ {[%emt 0:00:06]} 9. c3 {[%emt 0:00:07]} Qxc5 {[%emt 0:00:08]} 10. Nd4 {[%emt 0:01:07]} Ne7 {[%emt 0:00:08] [#]} 11. Nxf5 $146 {[%emt 0:01:37]} ({Predecessor:} 11. Qa4+ Nbc6 12. Be3 Qa5 13. Qxa5 Nxa5 14. Nxf5 Nxf5 15. Bb6 Nc4 16. Bxc4 dxc4 17. a4 {1-0 (43) So,W (2770)-Abdusattorov,N (2627) Chess.com INT 2020}) 11... Nxf5 {[%emt 0:00:39]} 12. Bd3 {[%emt 0:00:25]} Nc6 {[%emt 0:13:09]} 13. O-O {[%emt 0:05:56]} O-O {[%emt 0:08:12]} (13... Nxe5 $2 14. Bxf5 exf5 15. Re1 $18) 14. Qc2 {[%emt 0:15:02]} (14. g4 $5 {[%cal Rg4f5]} Nfe7 15. Be3 $14) 14... g6 {[%emt 0:03:55]} 15. b4 {[%emt 0:04:42]} Qe7 {[%emt 0:03:22]} 16. Bf4 {[%emt 0:06:12]} d4 {[%emt 0:09:55]} 17. a3 {[%emt 0:05:24]} dxc3 {[%emt 0:03:52]} 18. Qxc3 {[%emt 0:00:09]} Rfd8 {[%emt 0:08:31]} 19. Bxf5 {[%emt 0:03:14]} exf5 {[%emt 0:00:39]} 20. Rad1 {[%emt 0:00:49] Against Nd4} Rxd1 {[%emt 0:04:55]} 21. Rxd1 {[%emt 0:00:43]} Rd8 {[%emt 0:04:33]} 22. Rd6 {[%emt 0:17:27] [#]} Nxe5 $1 {[%emt 0:03:35]} 23. Rxd8+ {[%emt 0:03:02]} Qxd8 $15 {[%emt 0:00:01][%mdl 4096] Endgame KQB-KQN} 24. h3 {[%emt 0:00:12]} Nc6 {[%emt 0:00:43]} 25. Bh6 {[%emt 0:05:42][%csl Gh6][%cal Rc3g7]} Nd4 {[%emt 0:03:19]} ({Black should play} 25... Qd1+ $17 26. Kh2 Qd4) 26. Qe3 {[%emt 0:01:06]} (26. Kh1 $11 {remains equal.}) 26... Ne6 {[%emt 0:00:42]} (26... f6 $17) 27. Qa7 {[%emt 0:01:25] [#]} (27. Qe5 $11) 27... Qc8 $1 $17 {[%emt 0:01:43]} ({Don't play} 27... Qd1+ $6 28. Kh2 $11) 28. g3 {[%emt 0:00:44]} f4 {[%emt 0:04:23]} ({Better is} 28... f6 $17 {White must now prevent ...g5.} 29. Qe3 Qd7) 29. Bxf4 $11 {[%emt 0:03:40] The position is equal.} Nxf4 {[%emt 0:00:07]} 30. gxf4 {[%emt 0:00:03] KQ-KQ} h5 {[%emt 0:06:12]} 31. Qe3 {[%emt 0:01:35]} Qf5 {[%emt 0:01:03]} 32. Kg2 {[%emt 0:00:17]} Qd5+ {[%emt 0:01:34]} 33. Kg3 {[%emt 0:00:25]} Kh7 {[%emt 0:04:38]} 34. Qe7 {[%emt 0:01:32]} Qb3+ {[%emt 0:01:43]} 35. Kh4 {[%emt 0:00:51]} Qa2 {[%emt 0:03:42]} 36. Kg5 {[%emt 0:02:52] Threatens to win with Kf6.} Qd5+ {[%emt 0:00:54]} 37. Kh4 {[%emt 0:00:46]} Qf5 {[%emt 0:03:12][%cal Rf5f4]} 38. Kg3 {[%emt 0:00:18]} Qd3+ {[%emt 0:02:37]} 39. Kh4 {[%emt 0:01:51]} Qc4 {[%emt 0:01:30][%cal Rc4f4]} 40. Kg5 {[%emt 0:02:12]} Qd5+ {[%emt 0:01:04]} 41. Kh4 {[%emt 0:00:22]} Qf5 {[%emt 0:00:21] Weighted Error Value: White=0.13 (very precise) /Black=0.11 (very precise)} 1/2-1/2

[Event "Saint Louis Norm Congress-IM 2022"]
[Site "Saint Louis"]
[Date "2022.05.24"]
[Round "9.5"]
[White "Antova, Gabriela"]
[Black "Tokhirjonova, Gulrukhbegim"]
[Result "1-0"]
[ECO "C01"]
[WhiteElo "2293"]
[BlackElo "2337"]
[Annotator "TA"]
[PlyCount "129"]
[EventDate "2022.05.20"]
[EventType "tourn"]
[EventCountry "USA"]
[SourceTitle "playchess.com"]
[Source "ChessBase"]
[SourceQuality "1"]
[TimeControl "5400+30"]

{[%evp 9,129,34,39,23,23,0,0,0,0,0,0,-15,-16,-26,-33,-69,-42,-74,0,6,0,0,24,35,58,-7,-7,-3,0,0,69,71,91,0,0,0,97,55,116,129,114,0,206,229,275,283,299,323,468,336,301,268,360,341,427,416,709,398,639,63,101,104,79,21,278,255,408,406,540,244,223,0,108,82,381,256,327,306,525,528,768,715,918,1027,1095,982,1493,924,1017,933,1738,1721,1555,1118,1279,0,1227,908,1209,1008,1473,1097,964,1164,984,933,1301,1126,29979,839,29980,29981,29981,29982,29982,29981,29987,29972,29979,29980,2979,2401]} 1. d4 {[%emt 0:00:04]} e6 {[%emt 0:01:46]} 2. c4 {[%emt 0:00:46]} b6 {[%emt 0:00:17]} 3. e4 {[%emt 0:06:42]} Bb4+ {[%emt 0:01:20]} 4. Bd2 {[%emt 0:05:32]} Bxd2+ {[%emt 0:00:48]} 5. Qxd2 {[%emt 0:02:44]} d5 {[%emt 0:01:12]} 6. cxd5 {[%emt 0:05:13] C01: French: Exchange Variation.} exd5 {[%emt 0:00:14]} 7. e5 {[%emt 0:01:39]} Ne7 {[%emt 0:01:28]} 8. Nc3 {[%emt 0:06:37] The position is equal.} O-O {[%emt 0:01:17]} 9. Bd3 {[%emt 0:02:49]} c5 {[%emt 0:01:46]} 10. Nge2 {[%emt 0:03:13]} Nbc6 {[%emt 0:01:37]} 11. f4 {[%emt 0:06:12] [#]} a6 $146 {[%emt 0:08:15]} (11... f6 {keeps more tension.} 12. O-O fxe5 13. fxe5 Rxf1+ 14. Rxf1 cxd4 15. Nb5 Nxe5 16. Nexd4 Bd7) ({Predecessor:} 11... f6 12. exf6 Rxf6 13. O-O c4 14. Bc2 a6 15. Ng3 Nf5 16. Nce2 b5 17. Rae1 Qb6 {0-1 (48) Vitiugov,N (2747)-Salgado Lopez,I (2605) Moscow 2019}) 12. Bc2 {[%emt 0:14:17]} Bf5 {[%emt 0:13:11]} 13. O-O-O {[%emt 0:11:38]} cxd4 {[%emt 0:06:29]} (13... Bxc2 $17 14. Qxc2 Qd7) 14. Nxd4 $11 {[%emt 0:01:06]} Nxd4 {[%emt 0:00:06]} 15. Qxd4 {[%emt 0:00:10]} Bxc2 {[%emt 0:00:10]} 16. Kxc2 {[%emt 0:00:09][%cal Rc3d5]} Nc6 {[%emt 0:00:20]} 17. Qf2 {[%emt 0:01:47]} ({White should try} 17. Qa4 $14 b5 18. Qb3) 17... d4 {[%emt 0:00:19] Hoping for ...f6.} 18. Kb1 {[%emt 0:00:43]} f6 {[%emt 0:01:15]} 19. e6 {[%emt 0:10:42]} Qd6 {[%emt 0:04:26]} (19... Qe7 $11 20. Ne2 Qxe6 21. Nxd4 Nxd4 22. Rxd4 Rfe8) 20. f5 $14 {[%emt 0:02:21]} Rac8 {[%emt 0:01:04]} 21. a3 {[%emt 0:02:24]} ({Better is} 21. Rhe1 $16) 21... Rfd8 $11 {[%emt 0:01:05]} 22. Rhe1 {[%emt 0:05:52]} Ne7 {[%emt 0:06:51]} (22... Ne5 $11) 23. Ne4 {[%emt 0:00:38] White is more active.} Qd5 {[%emt 0:00:20]} (23... Qe5 $1 $14) 24. g4 $16 {[%emt 0:00:30]} d3 {[%emt 0:01:04]} 25. Rd2 {[%emt 0:03:44]} ({Only move:} 25. Qxb6 $16 {Threatens to win with g5.} Qe5 26. Qb3) 25... Rc4 $2 {[%emt 0:03:42] [#]} (25... Qb3 $11) 26. Qxb6 $1 $18 {[%emt 0:01:30]} h6 {[%emt 0:14:33]} (26... Rc6 27. Qa7) 27. Nf2 {[%emt 0:01:31]} Rd4 {[%emt 0:03:09]} 28. Red1 {[%emt 0:01:16]} (28. Qxa6 Ra8 29. Qb6 h5 $18) 28... Qf3 {[%emt 0:01:19]} (28... Qd6 $142 29. Qa7 Rc8 30. Rxd3 Rxd3 31. Nxd3 Rc7) 29. Qc7 {[%emt 0:02:12]} Re8 {[%emt 0:01:28]} 30. Ka1 {[%emt 0:00:55]} (30. Nxd3 Qxg4 31. Nc5 Qxf5+ 32. Ka1 Rxd2 33. Rxd2 Kh7 $11) 30... h5 {[%emt 0:04:11]} 31. h3 {[%emt 0:00:03]} (31. Nxd3 hxg4 32. Nb4 (32. Qa7 Qd5 $11) 32... Rxd2 33. Rxd2 Qxf5 $18) 31... h4 {[%emt 0:02:00]} 32. Qa7 {[%emt 0:00:18]} Qe3 {[%emt 0:02:00]} (32... Qf4 $142 33. Rxd3 (33. Nxd3 Qd6 $18) 33... Rxd3 34. Nxd3 Qf3) 33. Qxa6 {[%emt 0:00:26]} Rc8 $2 {[%emt 0:01:34]} (33... Kf8 34. Qa7 Re4) 34. Rxd3 $2 {[%emt 0:01:12]} (34. Qa7 $18) 34... Rxd3 $14 {[%emt 0:00:47]} 35. Nxd3 {[%emt 0:00:02]} Rd8 {[%emt 0:00:34] Inhibits Qd6.} 36. Qc4 {[%emt 0:01:00]} (36. Qb5 $1 $16 {[%cal Rb5b3]}) 36... Qe2 $2 {[%emt 0:01:07][%mdl 8192]} (36... Qxh3 $11 {and Black is okay.} 37. Ka2 Qf3) 37. Qb3 $18 {[%emt 0:00:20]} Qf3 {[%emt 0:01:01] Prevents Nf2.} (37... Rd4 $142 38. a4 Qf3) 38. Ka2 {[%emt 0:00:36][%cal Od3f2]} Rd4 {[%emt 0:01:26] [#]} 39. a4 {[%emt 0:00:32]} (39. Qb8+ Kh7 $18) (39. Nf2 $142 $1 {[%mdl 512]} Qxf2 40. Qb6) 39... Kh7 {[%emt 0:02:16]} 40. Rd2 $2 {[%emt 0:00:33]} ({White has to play} 40. a5 $18) 40... Qa8 {[%emt 0:01:30] [#]} (40... Qxh3 $11 {remains equal.} 41. Qd1 Qe3) 41. Ka3 $1 $16 {[%emt 0:00:23] Rc2 is the strong threat. White stays focused until the end.} Nc6 $2 {[%emt 0:00:44][%mdl 8192]} (41... Qh1 $16 42. Rd1 Qf3) 42. Rc2 {[%emt 0:00:25]} Qf8+ {[%emt 0:02:30] [#]} 43. Nc5 $1 {[%emt 0:00:09]} ({Inferior is} 43. Ka2 Rxd3 44. Rc3 (44. Rxc6 $2 Rxb3 45. Kxb3 Qb8+ 46. Ka3 Qe5 $19) (44. e7 $2 Qxe7 45. Rc3 Rxh3 $19) 44... Nb4+ 45. Kb1 Rd4 $17) 43... Qd6 $2 {[%emt 0:00:10]} (43... Rd1 44. Ka2 Nd4) 44. Rc3 $18 {[%emt 0:00:31]} Rd1 {[%emt 0:00:44] aiming for ...Ra1+.} 45. Ka2 {[%emt 0:00:46] Prevents Ra1+.} Qd4 {[%emt 0:02:20]} 46. Qc4 {[%emt 0:00:22]} (46. Nd3 Qg1 47. Qd5 (47. Ne1 $2 Rxe1 48. Ka3 Ra1+ 49. Qa2 Rxa2+ $19) 47... Nb4+ 48. Nxb4 Rxd5 49. Nxd5 Qd4 $18) 46... Qg1 {[%emt 0:02:22]} 47. Nb3 {[%emt 0:00:09]} Rd6 {[%emt 0:01:52]} 48. Qc5 {[%emt 0:00:37]} Qd1 {[%emt 0:00:04]} 49. Qb5 {[%emt 0:00:53]} Qh1 {[%emt 0:00:33]} 50. Ka3 {[%emt 0:00:35]} Qe4 {[%emt 0:00:50]} 51. Qc5 {[%emt 0:00:28]} Qf4 {[%emt 0:00:23]} 52. Qb5 {[%emt 0:00:40]} Qe4 {[%emt 0:00:16]} 53. Qc4 {[%emt 0:00:26]} Qh1 {[%emt 0:00:33]} 54. Qf4 {[%emt 0:00:32]} Rd1 {[%emt 0:00:51]} 55. Rc1 {[%emt 0:00:30]} Rxc1 {[%emt 0:01:49]} 56. Qxc1 {[%emt 0:00:11][%mdl 4096] Endgame KQN-KQN} Qe4 {[%emt 0:00:19]} 57. Qc3 {[%emt 0:00:16]} Kg8 {[%emt 0:01:42]} 58. a5 {[%emt 0:00:22]} Ne5 {[%emt 0:01:27]} 59. Qc8+ {[%emt 0:00:26]} Kh7 {[%emt 0:00:01]} 60. e7 {[%emt 0:00:47]} Nc4+ {[%emt 0:01:03] [#]} 61. Qxc4 $3 {[%emt 0:00:11][%mdl 512]} Qxe7+ {[%emt 0:00:28]} 62. Qb4 {[%emt 0:00:18]} Qe2 {[%emt 0:00:15]} 63. Qc3 {[%emt 0:00:18]} Qf1 {[%emt 0:00:11]} 64. Ka2 {[%emt 0:00:20]} Qb5 {[%emt 0:00:22]} 65. Nc5 {[%emt 0:00:46] Weighted Error Value: White=0.60/Black=0.89} 1-0